fUSD/lending_fUSD_20250118
["ID","MTS","AMOUNT","RATE_DAILY","PERIOD"]
[349504977,1737232238227,-442.18,0.00010137,2]
[349504978,1737232238237,-410.0,0.00010986,2]
[349504979,1737232238247,-107013.36268911,0.00011,2]
[349504980,1737232238257,-283097.53885496,0.00011,2]
[349504981,1737232238266,-1233270.82385177,0.00011,2]
[349504982,1737232238276,-309.0,0.00011527,2]
[349504983,1737232238286,-671.13182247,0.0001199,2]
[349504984,1737232238295,-9507850.5717229,0.00012,2]
[349504985,1737232238305,-24963.56883303,0.00012,2]
[349504986,1737232238315,-300.0,0.00012,2]
[349504987,1737232238324,-151.0,0.00012329,2]
[349504989,1737232238334,-151.0,0.00012329,2]
[349504991,1737232238344,-293.99551957,0.000125,2]
[349504993,1737232238353,-500.25533314,0.00013699,2]
[349504995,1737232238364,-454.81433843,0.00014981,7]
[349504996,1737232238374,-2879.84517684,0.00014981,7]
[349504998,1737232238384,-550.0,0.00015,2]
[349505000,1737232238393,-296.97524781,0.000151,2]
[349505002,1737232238402,-484.81096224,0.000154,2]
[349505004,1737232238412,-3007.07600806,0.00016,2]
[349505006,1737232238422,-205.24222736,0.000163,2]
[349505008,1737232238431,-205.24222731,0.000163,2]
[349505009,1737232238442,-205.24222731,0.000163,2]
[349505012,1737232238452,-203.28,0.00016813,2]
[349505013,1737232238462,-442.18,0.00016813,2]
[349505015,1737232238473,-2100.65,0.000169,2]
[349505018,1737232238483,-600.0,0.00017,2]
[349505020,1737232238493,-245.33503621,0.00017,2]
[349505023,1737232238507,-205.24222731,0.000187,2]
[349505026,1737232238517,-650.0,0.00019,2]
[349505028,1737232238527,-151.06,0.00019,2]
[349505030,1737232238537,-151.06,0.00019,2]
[349505031,1737232238548,-151.06,0.00019,2]
[349505032,1737232238560,-151.06,0.00019,2]
[349505033,1737232238569,-151.06,0.00019,2]
[349505034,1737232238580,-151.06,0.00019,2]
[349505035,1737232238589,-151.06,0.00019,2]
[349505036,1737232238599,-151.06,0.00019,2]
[349505037,1737232238609,-151.06,0.00019,2]
[349505038,1737232238618,-151.06,0.00019,2]
[349505039,1737232238627,-151.06,0.00019,2]
[349505040,1737232238636,-151.06,0.00019,2]
[349505041,1737232238645,-151.06,0.00019,2]
[349505042,1737232238655,-151.06,0.00019,2]
[349505043,1737232238664,-151.06,0.00019,2]
[349505044,1737232238674,-151.06,0.00019,2]
[349505045,1737232238684,-151.06,0.00019,2]
[349505046,1737232238693,-151.06,0.00019,2]
[349505047,1737232238703,-151.06,0.00019,2]
[349505048,1737232238713,-151.06,0.00019,2]
[349505049,1737232238723,-151.06,0.00019,2]
[349505050,1737232238733,-151.06,0.00019,2]
[349505051,1737232238742,-151.06,0.00019,2]
[349505052,1737232238752,-151.06,0.00019,2]
[349505053,1737232238762,-151.06,0.00019,2]
[349505054,1737232238772,-151.06,0.00019,2]
[349505055,1737232238782,-151.06,0.00019,2]
[349505056,1737232238791,-151.06,0.00019,2]
[349505057,1737232238801,-151.06,0.00019,2]
[349505058,1737232238811,-151.06,0.00019,2]
[349505059,1737232238820,-151.06,0.00019,2]
[349505060,1737232238831,-151.06,0.00019,2]
[349505061,1737232238841,-151.06,0.00019,2]
[349505062,1737232238851,-151.06,0.00019,2]
[349505063,1737232238860,-151.06,0.00019,2]
[349505064,1737232238870,-151.06,0.00019,2]
[349505065,1737232238880,-151.06,0.00019,2]
[349505066,1737232238891,-151.06,0.00019,2]
[349505067,1737232238901,-151.06,0.00019,2]
[349505068,1737232238911,-151.06,0.00019,2]
[349505069,1737232238921,-151.06,0.00019,2]
[349505070,1737232238931,-151.06,0.00019,2]
[349505071,1737232238941,-151.06,0.00019,2]
[349505072,1737232238951,-151.06,0.00019,2]
[349505073,1737232238960,-151.06,0.00019,2]
[349505074,1737232238970,-151.06,0.00019,2]
[349505075,1737232238980,-151.06,0.00019,2]
[349505076,1737232238990,-151.06,0.00019,2]
[349505077,1737232238999,-151.06,0.00019,2]
[349505078,1737232239010,-151.06,0.00019,2]
[349505079,1737232239019,-151.06,0.00019,2]
[349505080,1737232239028,-151.06,0.00019,2]
[349505081,1737232239038,-151.06,0.00019,2]
[349505082,1737232239048,-151.06,0.00019,2]
[349505083,1737232239057,-151.06,0.00019,2]
[349505084,1737232239066,-151.06,0.00019,2]
[349505085,1737232239077,-151.06,0.00019,2]
[349505086,1737232239086,-151.06,0.00019,2]
[349505087,1737232239096,-151.06,0.00019,2]
[349505088,1737232239105,-151.06,0.00019,2]
[349505089,1737232239114,-151.06,0.00019,2]
[349505090,1737232239124,-151.06,0.00019,2]
[349505091,1737232239133,-151.06,0.00019,2]
[349505092,1737232239143,-151.06,0.00019,2]
[349505093,1737232239152,-151.06,0.00019,2]
[349505094,1737232239161,-151.06,0.00019,2]
[349505095,1737232239170,-151.06,0.00019,2]
[349505096,1737232239180,-151.06,0.00019,2]
[349505097,1737232239195,-151.06,0.00019,2]
[349505098,1737232239209,-151.06,0.00019,2]
[349505099,1737232239218,-151.06,0.00019,2]
[349505100,1737232239228,-151.06,0.00019,2]
[349505101,1737232239237,-151.06,0.00019,2]
[349505102,1737232239247,-151.06,0.00019,2]
[349505103,1737232239256,-151.06,0.00019,2]
[349505104,1737232239266,-151.06,0.00019,2]
[349505105,1737232239275,-151.06,0.00019,2]
[349505106,1737232239285,-151.06,0.00019,2]
[349505107,1737232239295,-500.0,0.00019178,2]
[349505108,1737232239304,-500.0,0.00019178,2]
[349505109,1737232239314,-500.0,0.00019178,2]
[349505110,1737232239325,-430.96205867,0.00019178,2]
[349505111,1737232239334,-1170.99,0.00019178,2]
[349505112,1737232239344,-1170.99,0.00019178,2]
[349505113,1737232239354,-1170.99,0.00019178,2]
[349505114,1737232239364,-1170.99,0.00019178,2]
[349505115,1737232239375,-1170.99,0.00019178,2]
[349505116,1737232239384,-1170.99,0.00019178,2]
[349505117,1737232239394,-1170.99,0.00019178,2]
[349505118,1737232239403,-1170.99,0.00019178,2]
[349505119,1737232239413,-1170.99,0.00019178,2]
[349505120,1737232239422,-1170.99,0.00019178,2]
[349505121,1737232239432,-1170.99,0.00019178,2]
[349505122,1737232239444,-1170.99,0.00019178,2]
[349505123,1737232239454,-1170.99,0.00019178,2]
[349505124,1737232239464,-1170.99,0.00019178,2]
[349505125,1737232239473,-1170.99,0.00019178,2]
[349505126,1737232239483,-1170.99,0.00019178,2]
[349505127,1737232239492,-1170.99,0.00019178,2]
[349505128,1737232239503,-1170.99,0.00019178,2]
[349505129,1737232239517,-1170.99,0.00019178,2]
[349505130,1737232239527,-1170.99,0.00019178,2]
[349505131,1737232239537,-1170.99,0.00019178,2]
[349505132,1737232239548,-1170.99,0.00019178,2]
[349505133,1737232239557,-1170.99,0.00019178,2]
[349505134,1737232239567,-1171.11108925,0.00019178,2]
[349505135,1737232239577,-500.0,0.00019178,2]
[349505136,1737232239588,-229.04,0.00019178,2]
[349505137,1737232239599,-500.0,0.00019178,2]
[349505138,1737232239608,-500.0,0.00019178,2]
[349505139,1737232239618,-362.97731496,0.00019178,2]
[349505140,1737232239627,-500.0,0.00019178,2]
[349505141,1737232239636,-500.0,0.00019178,2]
[349505142,1737232239645,-500.0,0.00019178,2]
[349505143,1737232239655,-500.0,0.00019178,2]
[349505144,1737232239664,-500.0,0.00019178,2]
[349505145,1737232239674,-500.0,0.00019178,2]
[349505146,1737232239685,-500.0,0.00019178,2]
[349505147,1737232239694,-500.0,0.00019178,2]
[349505148,1737232239704,-357.98593892,0.00019178,2]
[349505149,1737232239714,-1141.84,0.00019711,2]
[349505150,1737232239723,-150.99,0.00020145,2]
[349505151,1737232239733,-528.47,0.000202,2]
[349505152,1737232239742,-700.0,0.00021,2]
[349505153,1737232239751,-205.24222731,0.000213,2]
[349505154,1737232239760,-250.0,0.00021518,2]
[349505155,1737232239769,-1000.0,0.0002153,2]
[349505156,1737232239779,-151.356606,0.00021548,2]
[349505157,1737232239788,-185.0,0.00021876,2]
[349505159,1737232239797,-150.0,0.00021876,2]
[349505161,1737232239807,-150.0,0.00021918,2]
[349505162,1737232239816,-1141.84,0.00021975,2]
[349505163,1737232239825,-250.0,0.00022069,2]
[349505164,1737232239834,-250.0,0.00022097,2]
[349505165,1737232239844,-30688.049,0.00022101,2]
[349505166,1737232239853,-500.0,0.00022199,7]
[349505167,1737232239863,-500.0,0.00022199,7]
[349505168,1737232239872,-500.0,0.00022199,7]
[349505169,1737232239881,-500.0,0.00022199,7]
[349505170,1737232239891,-500.0,0.00022199,7]
[349505171,1737232239903,-500.0,0.00022199,7]
[349505173,1737232239912,-500.0,0.00022199,7]
[349505174,1737232239922,-500.0,0.00022199,7]
[349505175,1737232239931,-500.0,0.00022199,7]
[349505176,1737232239942,-500.0,0.00022199,7]
[349505177,1737232239952,-541.642,0.000222,2]
[349505178,1737232239961,-23900.0,0.00022201,2]
[349505179,1737232239971,-1319.70675424,0.00022224,2]
[349505180,1737232239980,-1319.70675412,0.00022224,2]
[349505181,1737232239989,-1319.70675412,0.00022224,2]
[349505182,1737232239999,-1319.70675412,0.00022224,2]
[349505183,1737232240008,-151.356606,0.00022374,2]
[349505184,1737232240018,-150.0,0.00022495,2]
[349505185,1737232240030,-150.0,0.00022935,2]
[349505186,1737232240040,-150.0,0.0002295,2]
[349505187,1737232240050,-150.0,0.00022952,2]
[349505188,1737232240059,-150.0,0.0002296,2]
[349505189,1737232240068,-2737.02405,0.0002297,2]
[349505190,1737232240077,-150.0,0.00022986,2]
[349505191,1737232240086,-226.48887813,0.00022986,4]
[349505192,1737232240096,-151.79388298,0.00022986,4]
[349505193,1737232240105,-161.38917373,0.00022986,4]
[349505194,1737232240114,-500.0,0.00022998,2]
[349505195,1737232240124,-500.0,0.00022998,2]
[349505196,1737232240133,-500.0,0.00022998,2]
[349505197,1737232240142,-500.0,0.00022998,2]
[349505198,1737232240151,-500.0,0.00022998,2]
[349505199,1737232240160,-500.0,0.00022998,2]
[349505200,1737232240169,-500.0,0.00022998,2]
[349505201,1737232240179,-500.0,0.00022998,2]
[349505202,1737232240189,-500.0,0.00022998,2]
[349505203,1737232240199,-500.0,0.00022998,2]
[349505204,1737232240208,-500.0,0.00022998,2]
[349505205,1737232240218,-500.0,0.00022998,2]
[349505206,1737232240227,-500.0,0.00022998,2]
[349505207,1737232240237,-548.9,0.00022998,2]
[349505208,1737232240246,-395.0456442,0.00022999,2]
[349505209,1737232240256,-500.0,0.00022999,2]
[349505210,1737232240265,-500.0,0.00022999,2]
[349505211,1737232240275,-500.0,0.00022999,2]
[349505212,1737232240285,-215.62361724,0.00022999,2]
[349505213,1737232240294,-330.75903086,0.00022999,2]
[349505214,1737232240303,-500.0,0.00022999,2]
[349505215,1737232240312,-500.0,0.00022999,2]
[349505216,1737232240322,-500.0,0.00022999,2]
[349505217,1737232240331,-500.0,0.00022999,2]
[349505218,1737232240340,-247.0187486,0.00022999,2]
[349505219,1737232240350,-500.0,0.00022999,2]
[349505220,1737232240359,-500.0,0.00022999,2]
[349505221,1737232240369,-500.0,0.00022999,2]
[349505222,1737232240378,-500.0,0.00022999,2]
[349505223,1737232240387,-500.0,0.00022999,2]
[349505224,1737232240396,-500.0,0.00022999,2]
[349505225,1737232240405,-500.0,0.00022999,2]
[349505226,1737232240414,-523.85514847,0.00022999,2]
[349505227,1737232240424,-1764306.0,0.00023,2]
[349505228,1737232240434,-750.0,0.00023,2]
[349505229,1737232240445,-24806.7767154,0.00023,2]
[349505230,1737232240454,-151.0,0.00023,7]
[349505231,1737232240464,-151.0,0.00023,7]
[349505232,1737232240473,-200.0,0.00023,2]
[349505233,1737232240483,-301.129398,0.00023,7]
[349505234,1737232240493,-240.07836445,0.00023011,2]
[349505235,1737232240504,-152.0,0.00023015,3]
[349505237,1737232240514,-151.02704407,0.00023018,2]
[349505239,1737232240523,-150.0,0.00023071,2]
[349505241,1737232240532,-1000.0,0.00023095,2]
[349505243,1737232240542,-25794.82378714,0.00023096,2]
[349505245,1737232240552,-500.0,0.00023099,2]
[349505247,1737232240562,-622.89055188,0.00023099,2]
[349505249,1737232240571,-76262.46598443,0.000231,2]
[349505251,1737232240581,-150.0,0.000231,2]
[349505253,1737232240591,-245.33503621,0.000231,2]
[349505255,1737232240600,-2356.4546795,0.000231,2]
[349505257,1737232240610,-2100.65,0.000231,7]
[349505259,1737232240620,-150.0,0.00023106,2]
[349505261,1737232240629,-150.0,0.00023119,2]
[349505263,1737232240638,-150.0,0.00023121,2]
[349505265,1737232240647,-150.0,0.00023129,2]
[349505267,1737232240657,-150.0,0.0002313,2]
[349505269,1737232240666,-150.0,0.00023151,2]
[349505271,1737232240675,-150.0,0.00023167,2]
[349505273,1737232240687,-150.0,0.00023171,2]
[349505275,1737232240696,-150.0,0.00023172,2]
[349505277,1737232240706,-151.356606,0.00023178,20]
[349505279,1737232240715,-300.0,0.00023179,2]
[349505281,1737232240725,-151.356606,0.00023188,20]
[349505282,1737232240735,-217.0,0.0002319,2]
[349505284,1737232240745,-151.356606,0.00023197,20]
[349505287,1737232240754,-500.0,0.00023199,2]
[349505288,1737232240764,-151.356606,0.00023199,2]
[349505291,1737232240773,-200.0,0.00023199,2]
[349505292,1737232240783,-5220353.50964741,0.000232,2]
[349505294,1737232240792,-16393104.69757678,0.000232,2]
[349505297,1737232240807,-8768.97521127,0.000232,2]
[349505299,1737232240818,-394.287,0.000232,2]
[349505302,1737232240841,-151.0,0.00012329,2]
[349505304,1737232240851,-151.0,0.00023,7]
[349505306,1737232240860,-507469.9406874,0.000232,2]
[349505309,1737232240872,-386.29930001,0.000232,2]
[349505534,1737232243153,-16333.80335106,0.000232,2]
[349505537,1737232243165,-20181.13162853,0.000232,2]
[349505548,1737232243263,-255.5359996,0.000232,2]
[349505555,1737232243321,-40441.46662114,0.000232,2]
[349505557,1737232243332,-18856.40885322,0.000232,2]
[349505670,1737232246108,-151.0,0.00012329,2]
[349505671,1737232246119,-154.370443,0.00023,7]
[349505672,1737232246128,-403225.18316174,0.000232,2]
[349505673,1737232246139,-48352.93125225,0.000232,2]
[349505674,1737232246192,-175706.93399848,0.000232,2]
[349505675,1737232246203,-3272.89269823,0.000232,2]
[349505676,1737232246214,-2272.049504,0.000232,2]
[349505677,1737232246226,-51783.12903868,0.000232,2]
[349505678,1737232246236,-31444.78785204,0.000232,2]
[349505679,1737232246262,-426.4587781,0.000232,2]
[349505680,1737232246273,-510.00939672,0.000232,2]
[349505681,1737232246285,-28403.08641741,0.000232,2]
[349505682,1737232246295,-1578.52956553,0.000232,2]
[349505886,1737233277350,-157.07,0.00010137,2]
[349505896,1737233432239,-163.52,0.00017238,2]
[349505897,1737233432250,-1740.0,0.000178,2]
[349505898,1737233432261,-86.64889798,0.00017945,2]
[349505899,1737233432347,-413.35110202,0.00017945,2]
[349505900,1737233432357,-73.51992798,0.00018784,2]
[349505901,1737233432370,-436.0,0.00018784,2]
[349505902,1737233432403,-3981.54890285,0.00018784,2]
[349505903,1737233432416,-300.0,0.00019176,2]
[349505904,1737233432426,-433.314,0.00019177,2]
[349505905,1737233432436,-315.0,0.00019177,2]
[349505906,1737233432446,-500.0,0.00019178,2]
[349505907,1737233432456,-257.83,0.00019178,2]
[349505908,1737233432466,-500.0,0.00019178,2]
[349505909,1737233432477,-500.0,0.00019178,2]
[349505910,1737233432487,-388.71,0.00019178,2]
[349505911,1737233432497,-429.37848555,0.00019178,2]
[349505914,1737233432730,-70.62151445,0.00019178,2]
[349505915,1737233432740,-335.1,0.00019178,2]
[349505916,1737233432750,-500.0,0.00019178,2]
[349505917,1737233432760,-500.0,0.00019178,2]
[349505918,1737233432769,-500.0,0.00019178,2]
[349505919,1737233432779,-622.89055188,0.00019178,2]
[349505921,1737233432788,-500.0,0.00019178,2]
[349505922,1737233432797,-500.0,0.00019178,2]
[349505923,1737233432807,-500.0,0.00019178,2]
[349505924,1737233432816,-1088.71,0.00019823,2]
[349505925,1737233432826,-475.62,0.000202,2]
[349505926,1737233432835,-427.15934284,0.00021333,2]
[349505927,1737233432845,-427.15934284,0.00021524,2]
[349505928,1737233432855,-23900.0,0.00021569,2]
[349505929,1737233432864,-150.0,0.00021589,2]
[349505931,1737233432874,-536.41,0.00021615,2]
[349505932,1737233432883,-250.0,0.00021709,2]
[349505933,1737233432896,-150.99,0.00021757,2]
[349505934,1737233432905,-150.99,0.00021757,2]
[349505935,1737233432916,-179.98,0.00021761,2]
[349505936,1737233432925,-166.58,0.00021763,2]
[349505937,1737233432935,-250.0,0.00021784,2]
[349505938,1737233432944,-250.0,0.0002179,2]
[349505939,1737233432954,-1000.0,0.00021791,2]
[349505940,1737233432963,-427.15934284,0.00021814,2]
[349505941,1737233432973,-293.03,0.0002184,2]
[349505942,1737233432983,-500.0,0.0002184,2]
[349505943,1737233432992,-3048.51,0.00021842,30]
[349505944,1737233433001,-150.0,0.00021896,2]
[349505945,1737233433010,-150.0,0.00021918,2]
[349505946,1737233433020,-1088.71,0.00022087,2]
[349505947,1737233433029,-427.15934284,0.0002216,2]
[349505948,1737233433039,-500.0,0.000222,7]
[349505949,1737233433049,-427.15934284,0.0002233,2]
[349505950,1737233433059,-150.0,0.00022495,2]
[349505951,1737233433068,-427.15934284,0.0002255,2]
[349505952,1737233433077,-409.0,0.00022658,2]
[349505953,1737233433087,-427.15934287,0.00022771,2]
[349505954,1737233433096,-200.0,0.00022853,10]
[349505955,1737233433106,-200.0,0.00022855,10]
[349505956,1737233433115,-200.0,0.00022866,10]
[349505957,1737233433125,-200.0,0.00022868,10]
[349505958,1737233433134,-200.0,0.00022889,10]
[349505959,1737233433143,-205.24222731,0.000229,3]
[349505960,1737233433153,-186.81120796,0.00022906,6]
[349505961,1737233433163,-200.0,0.00022911,10]
[349505962,1737233433173,-200.0,0.00022912,10]
[349505963,1737233433183,-200.0,0.00022922,10]
[349505964,1737233433192,-150.0,0.00022933,2]
[349505965,1737233433201,-150.0,0.00022944,2]
[349505966,1737233433210,-200.0,0.00022945,10]
[349505967,1737233433219,-200.0,0.00022956,10]
[349505968,1737233433229,-6206.87295585,0.0002297,2]
[349505969,1737233433238,-200.0,0.00022975,10]
[349505970,1737233433247,-200.0,0.00022975,10]
[349505971,1737233433257,-200.0,0.00022986,10]
[349505972,1737233433267,-500.0,0.00022999,2]
[349505973,1737233433276,-7256.0872,0.00023,2]
[349505974,1737233433285,-7588.21228968,0.00023,2]
[349505975,1737233433294,-150.0,0.00023006,2]
[349505976,1737233433304,-150.0,0.00023009,2]
[349505977,1737233433313,-150.0,0.00023039,2]
[349505978,1737233433322,-150.0,0.00023042,2]
[349505979,1737233433331,-150.0,0.00023063,2]
[349505980,1737233433341,-150.0,0.00023071,2]
[349505981,1737233433351,-150.0,0.00023089,2]
[349505982,1737233433360,-271.00645583,0.00023096,2]
[349505983,1737233433369,-25794.82378714,0.00023096,2]
[349505984,1737233433379,-200.37334334,0.00023099,2]
[349505985,1737233433389,-1797.12589148,0.00023099,2]
[349505986,1737233433398,-1797.12589147,0.00023099,2]
[349505987,1737233433407,-1797.12589147,0.00023099,2]
[349505988,1737233433418,-1797.12589147,0.00023099,2]
[349505989,1737233433428,-1797.12589147,0.00023099,2]
[349505990,1737233433437,-1797.12589147,0.000231,2]
[349505991,1737233433447,-1797.12589147,0.000231,2]
[349505992,1737233433456,-1797.12589147,0.000231,2]
[349505993,1737233433465,-1797.12589147,0.000231,2]
[349505994,1737233433474,-187.39570595,0.000231,2]
[349505995,1737233433483,-490.67007242,0.000231,2]
[349505996,1737233433493,-44269.89637095,0.000231,2]
[349505997,1737233433503,-1797.12589147,0.000231,2]
[349505998,1737233433512,-372.72910498,0.000231,2]
[349505999,1737233433521,-150.0,0.00023128,2]
[349506000,1737233433531,-150.0,0.00023162,2]
[349506001,1737233433540,-150.0,0.00023163,2]
[349506002,1737233433550,-150.0,0.00023189,2]
[349506003,1737233433560,-216.34300141,0.0002319,2]
[349506004,1737233433569,-217.0,0.0002319,2]
[349506005,1737233433578,-1570.791444,0.00023199,7]
[349506006,1737233433587,-500.0,0.00023199,2]
[349506007,1737233433597,-1000.0,0.00023199,2]
[349506008,1737233433606,-1076.38,0.00023199,2]
[349506009,1737233433616,-1076.38,0.00023199,2]
[349506010,1737233433625,-1076.38,0.00023199,2]
[349506011,1737233433635,-1076.38,0.00023199,2]
[349506012,1737233433644,-1076.38,0.00023199,2]
[349506013,1737233433653,-1076.38,0.00023199,2]
[349506014,1737233433663,-1076.38,0.00023199,2]
[349506015,1737233433672,-1076.38,0.00023199,2]
[349506016,1737233433682,-1076.38,0.00023199,2]
[349506017,1737233433691,-1076.38,0.00023199,2]
[349506018,1737233433700,-1076.38,0.00023199,2]
[349506019,1737233433710,-1076.38,0.00023199,2]
[349506020,1737233433719,-1076.38,0.00023199,2]
[349506021,1737233433728,-1076.38,0.00023199,2]
[349506022,1737233433737,-1076.38,0.00023199,2]
[349506023,1737233433746,-1076.38,0.00023199,2]
[349506024,1737233433757,-1076.38,0.00023199,2]
[349506025,1737233433766,-1076.38,0.00023199,2]
[349506026,1737233433776,-1076.38,0.00023199,2]
[349506027,1737233433786,-1076.38,0.00023199,2]
[349506028,1737233433795,-1076.38,0.00023199,2]
[349506029,1737233433804,-1076.38,0.00023199,2]
[349506030,1737233433815,-1076.38,0.00023199,2]
[349506031,1737233433825,-1076.45943178,0.00023199,2]
[349506032,1737233433838,-238.99433261,0.00023199,2]
[349506033,1737233433848,-500.0,0.00023199,2]
[349506034,1737233433857,-500.0,0.00023199,2]
[349506035,1737233433867,-500.0,0.00023199,2]
[349506036,1737233433876,-500.0,0.00023199,2]
[349506037,1737233433886,-500.0,0.00023199,2]
[349506038,1737233433900,-500.0,0.00023199,2]
[349506039,1737233433909,-500.0,0.00023199,2]
[349506040,1737233433919,-278.65098732,0.00023199,2]
[349506041,1737233433929,-500.0,0.00023199,2]
[349506042,1737233433940,-500.0,0.00023199,2]
[349506043,1737233433949,-530176.83496353,0.000232,2]
[349506045,1737233438264,-399.69250446,0.000231,2]
[349506046,1737233438274,-4070802.50184321,0.000232,2]
[349506047,1737233438283,-486.66463814,0.000232,2]
[349506048,1737233438293,-4852708.54064198,0.000232,2]
[349506049,1737233438302,-9822055.04630565,0.000232,2]
[349506050,1737233438311,-2978210.80775386,0.000232,2]
[349506051,1737233438321,-1249.60153103,0.000232,2]
[349506052,1737233438332,-23070.47412191,0.000232,2]
[349506053,1737233438344,-5831.61824488,0.000232,2]
[349506136,1737233440386,-11010.62872,0.000232,2]
[349506137,1737233440443,-319.710001,0.000232,2]
[349506276,1737233446528,-508.3794,0.000232,2]
[349506277,1737233446638,-520.0,0.000232,2]
[349506288,1737233968274,182.95,0.00010137,2]
[349506310,1737234631427,-550.0,0.00015,2]
[349506311,1737234631438,-337.98587506,0.00016713,2]
[349506312,1737234631448,-182.95,0.00016813,2]
[349506313,1737234631457,-600.0,0.00017,2]
[349506314,1737234631466,-300.0,0.00018999,2]
[349506315,1737234631476,-650.0,0.00019,2]
[349506316,1737234631486,-2269.03152495,0.00019,2]
[349506317,1737234631498,-5041.39562713,0.00019,2]
[349506318,1737234631507,-428.06,0.000202,2]
[349506319,1737234631516,-1040.66,0.00020573,2]
[349506320,1737234631525,-420.0,0.00020709,2]
[349506321,1737234631534,-700.0,0.00021,2]
[349506322,1737234631543,-154.06,0.00021873,2]
[349506323,1737234631552,-1000.0,0.00021889,2]
[349506324,1737234631561,-150.0,0.00021896,2]
[349506325,1737234631570,-150.0,0.00021918,2]
[349506326,1737234631579,-150.0,0.00021944,2]
[349506327,1737234631590,-2268.38898082,0.00021944,2]
[349506328,1737234631606,-21631.61101918,0.00021944,2]
[349506329,1737234631616,-250.0,0.00022318,2]
[349506330,1737234631625,-150.0,0.00022498,2]
[349506331,1737234631634,-250.0,0.0002253,2]
[349506332,1737234631643,-250.0,0.0002253,2]
[349506333,1737234631652,-181.96,0.00022537,2]
[349506334,1737234631663,-587.0,0.00022573,2]
[349506335,1737234631672,-261.61105226,0.00022835,10]
[349506336,1737234631681,-1040.66,0.00022837,2]
[349506337,1737234631690,-261.61105226,0.00022848,10]
[349506338,1737234631699,-261.61105226,0.00022863,10]
[349506339,1737234631709,-261.61105226,0.00022911,10]
[349506340,1737234631718,-261.61105226,0.00022933,10]
[349506341,1737234631727,-261.61105226,0.00022961,10]
[349506342,1737234631736,-261.61105226,0.00022977,10]
[349506343,1737234631745,-261.61105226,0.00022986,10]
[349506345,1737234631755,-16576.72495964,0.00023,2]
[349506347,1737234631764,-750.0,0.00023,2]
[349506349,1737234631773,-200.0,0.00023,2]
[349506350,1737234631783,-152.0,0.00023016,3]
[349506352,1737234631792,-1000.0,0.0002304,2]
[349506354,1737234631801,-150.0,0.00023079,2]
[349506356,1737234631811,-5697.055,0.000231,2]
[349506358,1737234631820,-346.651,0.000231,2]
[349506360,1737234631830,-1746.591715,0.000231,2]
[349506362,1737234631839,-967.78495304,0.000231,2]
[349506364,1737234631848,-399.69250446,0.000231,2]
[349506366,1737234631858,-151.02704407,0.00023124,2]
[349506368,1737234631868,-240.07836445,0.00023146,2]
[349506370,1737234631877,-238.233542,0.0002316,30]
[349506372,1737234631886,-238.233542,0.0002316,14]
[349506374,1737234631895,-238.233542,0.0002316,20]
[349506376,1737234631905,-238.233542,0.00023169,20]
[349506378,1737234631914,-238.233542,0.0002317,30]
[349506380,1737234631924,-238.233542,0.00023178,20]